fUSD/lending_fUSD_20250720
["ID","MTS","AMOUNT","RATE_DAILY","PERIOD"]
[373587082,1753055444797,-200.0,0.00018957,2]
[373587084,1753055444806,-157.266275,0.00018963,2]
[373587086,1753055444816,-181.864333,0.00018963,2]
[373587087,1753055444825,-181.864333,0.00018963,2]
[373587089,1753055444835,-170.67281,0.00018963,2]
[373587091,1753055444844,-170.67281,0.00018963,2]
[373587093,1753055444854,-1803.21487,0.00018963,2]
[373587095,1753055444863,-1803.21487,0.00018963,2]
[373587097,1753055444873,-151.0,0.00018963,2]
[373587099,1753055444883,-202.46840791,0.00018963,2]
[373587101,1753055444893,-887.0,0.00018964,2]
[373587103,1753055444903,-151.0,0.00018964,2]
[373587105,1753055444913,-1218.465155,0.00018964,2]
[373587107,1753055444923,-151.0,0.00018964,2]
[373587108,1753055444933,-151.0,0.00018964,2]
[373587111,1753055444944,-150.0,0.00018964,2]
[373587112,1753055444954,-248.536803,0.00018964,2]
[373587114,1753055444963,-248.536803,0.00018964,2]
[373587116,1753055444973,-200.0,0.00018964,2]
[373587118,1753055444982,-930.08,0.00018968,2]
[373587120,1753055444991,-465.17,0.00018968,2]
[373587122,1753055445002,-461.09,0.00018968,2]
[373587124,1753055445013,-151.0,0.00018968,2]
[373587126,1753055445023,-151.0,0.00018968,2]
[373587128,1753055445033,-668.868213,0.00018968,2]
[373587129,1753055445042,-1531.39498018,0.00018974,2]
[373587131,1753055445052,-445.57719593,0.00018976,2]
[373587133,1753055445062,-200.0,0.00018976,2]
[373587135,1753055445071,-200.0,0.00018977,2]
[373587137,1753055445081,-151.0,0.00018978,2]
[373587139,1753055445091,-151.0,0.00018978,2]
[373587141,1753055445101,-151.0,0.00018978,2]
[373587143,1753055445111,-151.0,0.00018978,2]
[373587144,1753055445120,-151.0,0.00018978,2]
[373587146,1753055445130,-151.0,0.00018978,2]
[373587148,1753055445140,-151.0,0.00018978,2]
[373587150,1753055445150,-151.0,0.00018978,2]
[373587152,1753055445160,-151.0,0.00018978,2]
[373587154,1753055445170,-151.0,0.00018978,2]
[373587156,1753055445179,-151.0,0.00018978,2]
[373587158,1753055445189,-151.0,0.00018978,2]
[373587160,1753055445199,-151.0,0.00018978,2]
[373587162,1753055445208,-151.0,0.00018978,2]
[373587163,1753055445218,-151.0,0.00018978,2]
[373587165,1753055445228,-151.0,0.00018978,2]
[373587167,1753055445238,-151.0,0.00018978,2]
[373587169,1753055445247,-151.0,0.00018978,2]
[373587171,1753055445257,-151.0,0.00018978,2]
[373587173,1753055445267,-151.0,0.00018978,2]
[373587175,1753055445276,-151.0,0.00018978,2]
[373587177,1753055445285,-151.0,0.00018978,2]
[373587178,1753055445295,-1218.465155,0.00018978,2]
[373587180,1753055445304,-151.0,0.00018978,2]
[373587182,1753055445314,-159.140401,0.00018978,2]
[373587184,1753055445324,-151.0,0.00018978,2]
[373587186,1753055445334,-366.681682,0.00018978,2]
[373587189,1753055445343,-366.681682,0.00018978,2]
[373587192,1753055445353,-151.0,0.00018978,2]
[373587194,1753055445363,-151.0,0.00018978,2]
[373587196,1753055445372,-892.60596,0.00018978,2]
[373587197,1753055445382,-892.60596,0.00018978,2]
[373587199,1753055445391,-215.599305,0.00018978,2]
[373587201,1753055445401,-215.599305,0.00018978,2]
[373587203,1753055445410,-151.0,0.00018978,2]
[373587205,1753055445420,-151.0,0.00018978,2]
[373587207,1753055445430,-181.864333,0.00018978,2]
[373587209,1753055445439,-181.864333,0.00018978,2]
[373587211,1753055445449,-151.0,0.00018978,2]
[373587213,1753055445458,-170.67281,0.00018978,2]
[373587214,1753055445468,-170.67281,0.00018978,2]
[373587216,1753055445477,-1803.21487,0.00018978,2]
[373587218,1753055445487,-1803.21487,0.00018978,2]
[373587220,1753055445496,-151.0,0.00018978,2]
[373587222,1753055445507,-151.0,0.00018978,2]
[373587224,1753055445517,-164.855416,0.00018978,2]
[373587226,1753055445527,-164.855416,0.00018978,2]
[373587228,1753055445537,-164.855416,0.00018978,2]
[373587230,1753055445546,-164.855416,0.00018978,2]
[373587231,1753055445556,-151.0,0.00018978,2]
[373587233,1753055445565,-151.0,0.00018978,2]
[373587235,1753055445574,-151.0,0.00018978,2]
[373587237,1753055445584,-151.0,0.00018978,2]
[373587239,1753055445594,-151.0,0.00018978,2]
[373587241,1753055445604,-206.136317,0.00018978,2]
[373587243,1753055445614,-248.536803,0.00018978,2]
[373587244,1753055445624,-33.07836455,0.00018978,2]
[373587359,1753055446923,-662.68309162,0.00017,2]
[373587362,1753055446940,-4427.32177398,0.00017,2]
[373587364,1753055446950,-153.0,0.00017,2]
[373587366,1753055446959,-150.0,0.00017229,2]
[373587368,1753055446968,-150.0,0.00017503,2]
[373587370,1753055446978,-150.0,0.00017777,2]
[373587372,1753055446988,-150.0,0.00018051,2]
[373587374,1753055446997,-150.0,0.00018325,2]
[373587376,1753055447006,-250.0,0.00018599,2]
[373587378,1753055447016,-668.868213,0.000187,2]
[373587379,1753055447025,-668.868213,0.00018786,2]
[373587381,1753055447034,-668.868213,0.00018968,2]
[373587383,1753055447044,-215.45843845,0.00018978,2]
[373587385,1753055447053,-151.0,0.00018978,2]
[373587387,1753055447065,-176.939054,0.00018978,2]
[373587389,1753055447074,-287.637084,0.00018978,2]
[373587391,1753055447084,-151.0,0.00018978,2]
[373587393,1753055447093,-151.0,0.00018978,2]
[373587395,1753055447102,-668.868213,0.00018978,2]
[373587397,1753055447111,-668.868213,0.00018978,2]
[373587399,1753055447120,-76174.42820017,0.00018978,2]
[373587401,1753055447129,-587.7,0.00018978,2]
[373587403,1753055447139,-200.0,0.00018983,2]
[373587405,1753055447148,-151.0,0.0001899,2]
[373587407,1753055447157,-151.0,0.0001899,2]
[373587409,1753055447166,-151.0,0.0001899,2]
[373587411,1753055447175,-151.0,0.0001899,2]
[373587413,1753055447185,-151.0,0.0001899,2]
[373587415,1753055447194,-151.0,0.0001899,2]
[373587417,1753055447203,-1218.465155,0.0001899,2]
[373587419,1753055447212,-151.0,0.0001899,2]
[373587421,1753055447224,-151.0,0.0001899,2]
[373587423,1753055447234,-366.681682,0.0001899,2]
[373587425,1753055447243,-366.681682,0.0001899,2]
[373587427,1753055447252,-151.0,0.0001899,2]
[373587429,1753055447261,-151.0,0.0001899,2]
[373587431,1753055447272,-892.60596,0.0001899,2]
[373587433,1753055447281,-892.60596,0.0001899,2]
[373587434,1753055447291,-215.599305,0.0001899,2]
[373587436,1753055447300,-215.599305,0.0001899,2]
[373587438,1753055447309,-151.0,0.0001899,2]
[373587440,1753055447317,-151.0,0.0001899,2]
[373587442,1753055447326,-181.864333,0.0001899,2]
[373587444,1753055447335,-181.864333,0.0001899,2]
[373587446,1753055447344,-151.0,0.0001899,2]
[373587448,1753055447354,-170.67281,0.0001899,2]
[373587450,1753055447363,-170.67281,0.0001899,2]
[373587452,1753055447374,-1803.21487,0.0001899,2]
[373587454,1753055447383,-1803.21487,0.0001899,2]
[373587456,1753055447392,-151.0,0.0001899,2]
[373587458,1753055447401,-151.0,0.0001899,2]
[373587460,1753055447410,-164.855416,0.0001899,2]
[373587462,1753055447419,-164.855416,0.0001899,2]
[373587464,1753055447428,-151.0,0.0001899,2]
[373587466,1753055447437,-151.0,0.0001899,2]
[373587467,1753055447446,-248.536803,0.0001899,2]
[373587469,1753055447455,-248.536803,0.0001899,2]
[373587471,1753055447464,-151.0,0.0001899,2]
[373587473,1753055447474,-150.0,0.00018998,2]
[373587475,1753055447483,-588.0,0.00018999,2]
[373587477,1753055447492,-2377.62000001,0.00019,2]
[373587479,1753055447502,-567.87762546,0.00019,2]
[373587481,1753055447511,-8222.88312907,0.00019,2]
[373587483,1753055447522,-5000.0,0.00019,2]
[373587485,1753055447531,-2000.0,0.00019,2]
[373587487,1753055447540,-151.0,0.00019,2]
[373587489,1753055447549,-151.0,0.00019,2]
[373587491,1753055447558,-151.0,0.00019,2]
[373587493,1753055447567,-153.478419,0.00019,2]
[373587495,1753055447577,-151.0,0.00019,2]
[373587497,1753055447586,-151.0,0.00019,2]
[373587499,1753055447595,-151.0,0.00019,2]
[373587501,1753055447604,-151.0,0.00019,2]
[373587503,1753055447613,-215.599305,0.00019,2]
[373587505,1753055447622,-215.599305,0.00019,2]
[373587507,1753055447631,-151.0,0.00019,2]
[373587509,1753055447640,-151.0,0.00019,2]
[373587511,1753055447650,-181.864333,0.00019,2]
[373587512,1753055447659,-181.864333,0.00019,2]
[373587514,1753055447667,-151.0,0.00019,2]
[373587516,1753055447676,-170.67281,0.00019,2]
[373587518,1753055447685,-170.67281,0.00019,2]
[373587520,1753055447694,-1803.21487,0.00019,2]
[373587522,1753055447703,-1803.21487,0.00019,2]
[373587524,1753055447712,-151.0,0.00019,2]
[373587526,1753055447721,-172.973458,0.00019,2]
[373587528,1753055447731,-164.855416,0.00019,2]
[373587530,1753055447744,-164.855416,0.00019,2]
[373587532,1753055447753,-151.0,0.00019,2]
[373587534,1753055447762,-151.0,0.00019,2]
[373587536,1753055447773,-248.536803,0.00019,2]
[373587538,1753055447783,-248.536803,0.00019,2]
[373587540,1753055447792,-151.0,0.00019,2]
[373587542,1753055447801,-3000.0,0.00019,2]
[373587544,1753055447810,-3000.0,0.00019,5]
[373587546,1753055447819,-668.868213,0.00019,2]
[373587548,1753055447828,-668.868214,0.00019,2]
[373587550,1753055447838,-178.61,0.00019016,2]
[373587552,1753055447851,-190.71,0.00019022,2]
[373587554,1753055447860,-2802.19286535,0.00019031,2]
[373587556,1753055447870,-1017.71714839,0.00019031,2]
[373587558,1753055447879,-3352.0,0.00019052,2]
[373587560,1753055447888,-2017.0,0.00019052,2]
[373587562,1753055447897,-807.0,0.00019052,2]
[373587564,1753055447907,-1268.0,0.00019052,2]
[373587566,1753055447916,-961.0,0.00019052,2]
[373587568,1753055447925,-1687.0,0.00019052,2]
[373587570,1753055447934,-562.0,0.00019052,2]
[373587572,1753055447943,-1287.0,0.00019052,2]
[373587574,1753055447953,-595.0,0.00019052,2]
[373587576,1753055447962,-21364.0,0.00019052,2]
[373587578,1753055447971,-862.0,0.00019052,2]
[373587579,1753055447980,-6050.0,0.00019052,2]
[373587581,1753055447990,-1218.465155,0.00019052,2]
[373587583,1753055447999,-151.0,0.00019052,2]
[373587585,1753055448008,-294.860848,0.00019052,2]
[373587587,1753055448018,-366.681682,0.00019052,2]
[373587589,1753055448028,-366.681682,0.00019052,2]
[373587591,1753055448037,-151.0,0.00019052,2]
[373587593,1753055448047,-151.0,0.00019052,2]
[373587595,1753055448057,-892.60596,0.00019052,2]
[373587597,1753055448067,-892.60596,0.00019052,2]
[373587599,1753055448076,-215.599305,0.00019052,2]
[373587601,1753055448085,-215.599305,0.00019052,2]
[373587603,1753055448095,-151.0,0.00019052,2]
[373587605,1753055448104,-151.0,0.00019052,2]
[373587607,1753055448113,-181.864333,0.00019052,2]
[373587609,1753055448122,-181.864333,0.00019052,2]
[373587611,1753055448132,-151.0,0.00019052,2]
[373587613,1753055448141,-170.67281,0.00019052,2]
[373587615,1753055448150,-170.67281,0.00019052,2]
[373587617,1753055448160,-1803.21487,0.00019052,2]
[373587619,1753055448169,-1803.21487,0.00019052,2]
[373587621,1753055448178,-151.0,0.00019052,2]
[373587623,1753055448187,-164.855416,0.00019052,2]
[373587625,1753055448197,-164.855408,0.00019052,2]
[373587627,1753055448206,-248.536803,0.00019052,2]
[373587629,1753055448215,-248.536803,0.00019052,2]
[373587631,1753055448224,-500.0,0.00019059,2]
[373587633,1753055448233,-212.4292827,0.00019059,2]
[373587635,1753055448243,-150.0,0.00019062,2]
[373587637,1753055448252,-150.0,0.00019063,2]
[373587639,1753055448266,-151.0,0.00019064,2]
[373587641,1753055448276,-151.0,0.00019064,2]
[373587643,1753055448286,-151.0,0.00019064,2]
[373587645,1753055448295,-407.494716,0.00019064,2]
[373587647,1753055448304,-407.494716,0.00019064,2]
[373587649,1753055448313,-151.0,0.00019064,2]
[373587651,1753055448323,-151.0,0.00019064,2]
[373587653,1753055448332,-151.0,0.00019064,2]
[373587655,1753055448341,-151.0,0.00019064,2]
[373587657,1753055448351,-151.0,0.00019064,2]
[373587659,1753055448361,-151.0,0.00019064,2]
[373587661,1753055448371,-242.7861,0.00019064,2]
[373587663,1753055448380,-151.0,0.00019064,2]
[373587665,1753055448390,-153.625767,0.00019064,2]
[373587667,1753055448399,-151.0,0.00019064,2]
[373587669,1753055448408,-151.0,0.00019064,2]
[373587671,1753055448418,-151.0,0.00019064,2]
[373587673,1753055448429,-159.70949512,0.00019068,2]
[373587675,1753055448438,-150.0,0.00019068,2]
[373587677,1753055448448,-150.0,0.00019068,2]
[373587679,1753055448457,-151.76470509,0.00019068,2]
[373587681,1753055448466,-150.0,0.00019068,2]
[373587683,1753055448476,-151.9638517,0.00019068,2]
[373587685,1753055448486,-262.43255859,0.00019068,2]
[373587687,1753055448495,-150.0,0.00019068,2]
[373587689,1753055448505,-151.21726007,0.00019068,2]
[373587691,1753055448516,-150.0,0.00019068,2]
[373587693,1753055448529,-150.0,0.00019068,2]
[373587695,1753055448539,-550.22088462,0.00019069,2]
[373587697,1753055448548,-58299.6886906,0.00019069,2]
[373587699,1753055448558,-5836.5519232,0.00019069,2]
[373587701,1753055448567,-500.0,0.00019073,2]
[373587703,1753055448577,-201.88798212,0.00019073,2]
[373587705,1753055448587,-500.0,0.00019073,2]
[373587707,1753055448596,-478.21031098,0.00019073,2]
[373587709,1753055448605,-400.22356719,0.00019073,2]
[373587711,1753055448615,-500.0,0.00019073,2]
[373587713,1753055448624,-555.5109164,0.00019073,2]
[373587715,1753055448633,-500.0,0.00019073,2]
[373587716,1753055448643,-500.0,0.00019073,2]
[373587718,1753055448652,-508.47694521,0.00019073,2]
[373587720,1753055448661,-500.0,0.00019073,2]
[373587722,1753055448670,-500.0,0.00019073,2]
[373587724,1753055448680,-500.0,0.00019073,2]
[373587726,1753055448689,-498.26015357,0.00019073,2]
[373587728,1753055448700,-500.0,0.00019073,2]
[373587730,1753055448709,-500.0,0.00019073,2]
[373587732,1753055448719,-500.0,0.00019073,2]
[373587734,1753055448728,-500.6093395,0.00019073,2]
[373587736,1753055448740,-158.96970332,0.00019073,2]
[373587738,1753055448749,-502.7587231,0.00019073,2]
[373587740,1753055448760,-501.2080838,0.00019073,2]
[373587742,1753055448770,-502.09925177,0.00019073,2]
[373587744,1753055448780,-551.07317311,0.00019073,2]
[373587746,1753055448789,-500.6818048,0.00019073,2]
[373587748,1753055448800,-500.17241131,0.00019073,2]
[373587750,1753055448810,-500.0,0.00019073,2]
[373587752,1753055448819,-500.0,0.00019073,2]
[373587754,1753055448829,-2530.8128833,0.00019075,2]
[373587756,1753055448839,-202.46840791,0.00019078,2]
[373587758,1753055448850,-1949.7391599,0.00019078,2]
[373587760,1753055448860,-300.0,0.00019079,2]
[373587762,1753055448870,-40327.91640427,0.0001908,2]
[373587769,1753055448939,-6821.03671273,0.0001908,2]
[373587808,1753055449452,-150.0,0.00017229,2]
[373587811,1753055449462,-150.0,0.00017503,2]
[373587813,1753055449472,-200.0,0.00017777,2]
[373587815,1753055449482,-4533.89871005,0.0001908,2]
[373587817,1753055449494,-2665.91,0.0001908,2]
[373587822,1753055449535,-3038.90999918,0.0001908,2]
[373587825,1753055449556,-37408.17171041,0.0001908,2]
[373587828,1753055449572,-827546.47132711,0.0001908,2]
[373587830,1753055449582,-151.0,0.0001908,2]
[373587832,1753055449592,-151.0,0.0001908,2]
[373587834,1753055449602,-151.0,0.0001908,2]
[373587836,1753055449612,-207.679686,0.0001908,2]
[373587838,1753055449622,-181.29580774,0.0001908,2]
[373587840,1753055449632,-217.409076,0.0001908,2]
[373587842,1753055449642,-151.0,0.0001908,2]
[373587843,1753055449652,-151.0,0.0001908,2]
[373587845,1753055449662,-151.0,0.0001908,2]
[373587847,1753055449672,-151.0,0.0001908,2]
[373587849,1753055449682,-151.0,0.0001908,2]
[373587851,1753055449692,-151.0,0.0001908,2]
[373587853,1753055449701,-151.0,0.0001908,2]
[373587855,1753055449711,-151.0,0.0001908,2]
[373587857,1753055449721,-172.295947,0.0001908,2]
[373587859,1753055449731,-151.0,0.0001908,2]
[373587861,1753055449743,-185.914132,0.0001908,2]
[373587863,1753055449753,-151.0,0.0001908,2]
[373587865,1753055449762,-151.076331,0.0001908,2]
[373587866,1753055449774,-151.076331,0.0001908,2]
[373587868,1753055449783,-151.0,0.0001908,2]
[373587870,1753055449793,-151.0,0.0001908,2]
[373587872,1753055449802,-151.0,0.0001908,2]
[373587874,1753055449813,-322.207958,0.0001908,2]
[373587876,1753055449822,-322.207958,0.0001908,2]
[373587878,1753055449832,-151.0,0.0001908,2]
[373587880,1753055449842,-330.40887058,0.0001908,2]
[373587882,1753055449852,-151.0,0.0001908,2]
[373587884,1753055449862,-407.494716,0.0001908,2]
[373587886,1753055449872,-407.494716,0.0001908,2]
[373587888,1753055449881,-305.743358,0.0001908,2]
[373587890,1753055449891,-305.743358,0.0001908,2]
[373587892,1753055449899,-151.0,0.0001908,2]
[373587894,1753055449909,-151.0,0.0001908,2]
[373587896,1753055449919,-151.0,0.0001908,2]
[373587898,1753055449928,-151.0,0.0001908,2]
[373587900,1753055449938,-151.0,0.0001908,2]
[373587902,1753055449947,-262.085298,0.0001908,2]
[373587904,1753055449957,-151.0,0.0001908,2]
[373587905,1753055449966,-151.0,0.0001908,2]
[373587907,1753055449976,-151.0,0.0001908,2]
[373587909,1753055449986,-151.0,0.0001908,2]
[373587911,1753055449995,-151.0,0.0001908,2]
[373587913,1753055450005,-151.0,0.0001908,2]
[373587916,1753055450017,-151.0,0.0001908,2]
[373587918,1753055450026,-159934.70458468,0.0001908,2]
[373587920,1753055450036,-1218.465155,0.0001908,2]
[373587922,1753055450046,-1218.465155,0.0001908,2]
[373587924,1753055450057,-151.0,0.0001908,2]
[373587925,1753055450072,-151.0,0.0001908,2]
[373587927,1753055450082,-366.681682,0.0001908,2]
[373587929,1753055450092,-366.681682,0.0001908,2]
[373587931,1753055450102,-366.681682,0.0001908,2]
[373587933,1753055450111,-366.681682,0.0001908,2]
[373587935,1753055450121,-151.0,0.0001908,2]
[373587938,1753055450131,-151.0,0.0001908,2]
[373587939,1753055450141,-892.60596,0.0001908,2]
[373587942,1753055450151,-892.60596,0.0001908,2]
[373587944,1753055450161,-892.60596,0.0001908,2]
[373587946,1753055450171,-892.60596,0.0001908,2]
[373587947,1753055450180,-215.599305,0.0001908,2]
[373587949,1753055450189,-215.599305,0.0001908,2]
[373587952,1753055450200,-215.599305,0.0001908,2]
[373587954,1753055450209,-215.599305,0.0001908,2]
[373587956,1753055450218,-151.0,0.0001908,2]
[373587958,1753055450228,-151.0,0.0001908,2]
[373587960,1753055450238,-151.0,0.0001908,2]
[373587962,1753055450247,-181.864333,0.0001908,2]
[373587964,1753055450257,-181.864326,0.0001908,2]
[373587966,1753055450270,-151.0,0.0001908,2]
[373587968,1753055450280,-151.0,0.0001908,2]
[373587969,1753055450289,-170.67281,0.0001908,2]
[373587971,1753055450299,-170.6728,0.0001908,2]
[373587973,1753055450309,-1803.21487,0.0001908,2]
[373587975,1753055450319,-1803.214868,0.0001908,2]
[373587977,1753055450328,-151.0,0.0001908,2]
[373587979,1753055450338,-151.0,0.0001908,2]
[373587981,1753055450347,-248.536803,0.0001908,2]
[373587983,1753055450357,-248.536803,0.0001908,2]
[373587985,1753055450367,-248.536803,0.0001908,2]
[373587987,1753055450377,-248.536803,0.0001908,2]
[373587989,1753055450386,-311.357,0.00019082,2]
[373587991,1753055450396,-508.0,0.00019101,2]
[373587993,1753055450406,-692.475,0.00019102,7]
[373587995,1753055450416,-2210.0,0.00019118,2]
[373587997,1753055450426,-1218.465155,0.0001914,2]
[373587999,1753055450435,-151.0,0.0001914,2]
[373588001,1753055450445,-2210.0,0.00019146,2]
[373588003,1753055450455,-3003.0,0.00019147,2]
[373588005,1753055450465,-1757.0,0.00019147,2]
[373588007,1753055450476,-208.13366706,0.0001915,2]
[373588009,1753055450486,-1835.0,0.00019151,2]
[373588011,1753055450496,-10490.0,0.00019151,2]
[373588013,1753055450507,-215.599305,0.00019151,2]
[373588015,1753055450520,-215.599305,0.00019151,2]
[373588017,1753055450530,-151.0,0.00019151,2]
[373588019,1753055450540,-182.458533,0.00019151,2]
[373588021,1753055450550,-248.536803,0.00019151,2]
[373588023,1753055450559,-248.536806,0.00019151,2]
[373588025,1753055450570,-154.88076955,0.00019151,2]
[373588028,1753055450580,-366.681682,0.00019153,2]
[373588030,1753055450590,-366.681682,0.00019153,2]
[373588032,1753055450600,-892.60596,0.00019153,2]
[373588034,1753055450610,-892.60596,0.00019153,2]
[373588036,1753055450620,-151.0,0.00019157,2]
[373588038,1753055450631,-151.0,0.00019157,2]
[373588040,1753055450641,-238.102834,0.00019157,2]
[373588042,1753055450651,-201.510676,0.00019157,2]
[373588044,1753055450660,-508.0,0.00019157,2]
[373588046,1753055450671,-399.20194727,0.0001916,2]
[373588048,1753055450680,-150.0,0.0001916,2]
[373588050,1753055450690,-500.0,0.00019173,2]
[373588052,1753055450700,-500.0,0.00019173,2]
[373588054,1753055450709,-1218.465163,0.00019173,2]
[373588056,1753055450719,-151.0,0.00019173,2]
[373588058,1753055450729,-366.681682,0.00019173,2]
[373588060,1753055450740,-366.681688,0.00019173,2]
[373588062,1753055450752,-892.60596,0.00019173,2]
[373588064,1753055450766,-892.605966,0.00019173,2]
[373588066,1753055450775,-450.0,0.00019178,2]
[373588068,1753055450785,-476.0,0.00019178,2]
[373588070,1753055450795,-1040.0,0.00019178,2]
[373588072,1753055450804,-939.0,0.00019178,2]
[373588074,1753055450814,-153.35098,0.00019178,2]
[373588076,1753055450824,-151.0,0.00019178,2]
[373588078,1753055450836,-151.0,0.00019178,2]
[373588080,1753055450846,-151.0,0.00019178,2]
[373588082,1753055450856,-151.0,0.00019178,2]
[373588084,1753055450866,-151.0,0.00019178,2]
[373588086,1753055450876,-151.0,0.00019178,2]
[373588088,1753055450885,-151.0,0.00019178,2]
[373588090,1753055450895,-151.0,0.00019178,2]
[373588092,1753055450905,-151.0,0.00019178,2]
[373588094,1753055450914,-151.0,0.00019178,2]
[373588096,1753055450924,-151.0,0.00019178,2]
[373588098,1753055450934,-151.0,0.00019178,2]
[373588100,1753055450944,-151.0,0.00019178,2]
[373588102,1753055450953,-189.795373,0.00019178,2]
[373588104,1753055450964,-151.0,0.00019178,2]
[373588106,1753055450975,-279.237108,0.00019178,2]
[373588108,1753055450985,-151.0,0.00019178,2]
[373588110,1753055450995,-151.0,0.00019178,2]
[373588112,1753055451004,-151.0,0.00019178,2]
[373588114,1753055451015,-151.0,0.00019178,2]
[373588116,1753055451025,-151.0,0.00019178,2]
[373588118,1753055451035,-152.516922,0.00019178,2]
[373588120,1753055451045,-151.0,0.00019178,2]
[373588123,1753055451055,-151.0,0.00019178,2]
[373588125,1753055451065,-151.0,0.00019178,2]
[373588127,1753055451075,-151.0,0.00019178,2]
[373588129,1753055451084,-151.0,0.00019178,2]
[373588131,1753055451094,-151.0,0.00019178,2]
[373588165,1753055451407,-151.0,0.00019178,2]
[373588167,1753055451421,-151.0,0.00019178,2]
[373588169,1753055451430,-151.0,0.00019178,2]
[373588171,1753055451440,-151.0,0.00019178,2]
[373588173,1753055451449,-151.0,0.00019178,2]
[373588175,1753055451459,-151.0,0.00019178,2]
[373588177,1753055451469,-151.0,0.00019178,2]
[373588179,1753055451478,-151.0,0.00019178,2]
[373588181,1753055451487,-223.722569,0.00019178,2]
[373588183,1753055451496,-151.0,0.00019178,2]
[373588185,1753055451506,-151.0,0.00019178,2]
[373588187,1753055451516,-151.0,0.00019178,2]
[373588188,1753055451526,-151.0,0.00019178,2]
[373588189,1753055451535,-151.0,0.00019178,2]
[373588190,1753055451545,-151.0,0.00019178,2]
[373588191,1753055451554,-151.0,0.00019178,2]
[373588192,1753055451564,-151.0,0.00019178,2]
[373588194,1753055451573,-151.0,0.00019178,2]
[373588196,1753055451583,-157.20372,0.00019178,2]
[373588198,1753055451593,-167.598014,0.00019178,2]
[373588200,1753055451603,-160.429357,0.00019178,2]
[373588202,1753055451613,-158.478467,0.00019178,2]
[373588204,1753055451623,-152.181321,0.00019178,2]
[373588206,1753055451633,-151.0,0.00019178,2]
[373588207,1753055451642,-151.0,0.00019178,2]
[373588209,1753055451651,-151.0,0.00019178,2]
[373588211,1753055451660,-155.093728,0.00019178,2]
[373588213,1753055451670,-906.747034,0.00019178,2]
[373588215,1753055451680,-882.095576,0.00019178,2]
[373588217,1753055451690,-151.0,0.00019178,2]
[373588219,1753055451700,-151.0,0.00019178,2]
[373588221,1753055451709,-151.0,0.00019178,2]
[373588223,1753055451719,-151.0,0.00019178,2]
[373588225,1753055451729,-210.939392,0.00019178,2]
[373588227,1753055451740,-168.018206,0.00019178,2]
[373588229,1753055451750,-151.0,0.00019178,2]
[373588231,1753055451760,-151.0,0.00019178,2]
[373588233,1753055451771,-151.0,0.00019178,2]
[373588235,1753055451781,-151.0,0.00019178,2]
[373588237,1753055451790,-151.0,0.00019178,2]
[373588239,1753055451800,-151.0,0.00019178,2]
[373588241,1753055451810,-194.401997,0.00019178,2]
[373588243,1753055451819,-152.471472,0.00019178,2]
[373588245,1753055451829,-152.832372,0.00019178,2]
[373588246,1753055451838,-151.0,0.00019178,2]
[373588248,1753055451848,-151.0,0.00019178,2]
[373588251,1753055451858,-151.0,0.00019178,2]
[373588252,1753055451868,-151.0,0.00019178,2]